Workbook

Sheet Clasificación
D1: Resultado de la Carrera 12 abril 2019 21:01
A3: Posición | B3: Nombre | D3: Vueltas | E3: Coma | F3: Pista 1 | G3: Pista 3 | H3: Pista 5 | I3: Pista 6 | J3: Pista 4 | K3: Pista 2 | L3: Pista 7 | M3: Pista 8 | N3: Pole
A4: 1 | B4: OCAPEL | C4: BMW M1 Gr5 Scaleauto | D4: 327 | E4: ,043 | F4: 54 | G4: 55 | H4: 54 | I4: 55 | J4: 54 | K4: 55 | N4: 2º | W4: 26
B5: Vuelta rápida | F5: 10.925 | G5: 10.839 | H5: 10.941 | I5: 10.894 | J5: 10.833 | K5: 10.884 | N5: 0
B6: Vuelta media | F6: 11.011 | G6: 10.986 | H6: 11.056 | I6: 11.025 | J6: 11.043 | K6: 11.055
B7: Vuelta lenta | D7: (5) | F7: (0) 11,13 | G7: (1) 12,98 | H7: (0) 11,37 | I7: (1) 13,01 | J7: (2) 16,41 | K7: (1) 14,41
A8: 2 | B8: DIZQUIERDO | C8: BMW M1 Gr5 Sideways | D8: 325 | E8: ,006 | F8: 54 | G8: 54 | H8: 55 | I8: 53 | J8: 55 | K8: 54 | N8: 5º
B9: Vuelta rápida | F9: 10.965 | G9: 10.86 | H9: 10.89 | I9: 10.901 | J9: 10.814 | K9: 10.998 | N9: 0
B10: Vuelta media | F10: 11.102 | G10: 11.099 | H10: 11.066 | I10: 11.138 | J10: 11.005 | K10: 11.171
B11: Vuelta lenta | D11: (1) | F11: (0) 11,41 | G11: (1) 14,98 | H11: (0) 11,62 | I11: (0) 11,66 | J11: (0) 11,50 | K11: (0) 11,48
A12: 3 | B12: JMSEREROLS | C12: BMW M1 Gr5 Scaleauto | D12: 324 | E12: ,019 | F12: 52 | G12: 54 | H12: 55 | I12: 54 | J12: 55 | K12: 54 | N12: 6º
B13: Vuelta rápida | F13: 11.104 | G13: 10.882 | H13: 10.909 | I13: 10.981 | J13: 10.788 | K13: 10.989 | N13: 0
B14: Vuelta media | F14: 11.34 | G14: 11.129 | H14: 11.04 | I14: 11.126 | J14: 11.08 | K14: 11.126
B15: Vuelta lenta | D15: (6) | F15: (2) 13,17 | G15: (2) 14,41 | H15: (0) 11,34 | I15: (0) 11,41 | J15: (2) 15,08 | K15: (0) 11,29
A16: 4 | B16: FLINAN | C16: Ford Capri Turbo Sideways | D16: 323 | E16: ,024 | F16: 53 | G16: 54 | H16: 54 | I16: 54 | J16: 54 | K16: 54 | N16: 3º
B17: Vuelta rápida | F17: 11.031 | G17: 10.974 | H17: 11.002 | I17: 10.983 | J17: 10.92 | K17: 11.009 | N17: 0
B18: Vuelta media | F18: 11.296 | G18: 11.149 | H18: 11.174 | I18: 11.102 | J18: 11.181 | K18: 11.118
B19: Vuelta lenta | D19: (5) | F19: (2) 14,10 | G19: (1) 12,94 | H19: (0) 11,72 | I19: (0) 11,49 | J19: (2) 14,53 | K19: (0) 11,31
A20: 5 | B20: ECERDA | C20: BMW M1 Gr5 Scaleauto | D20: 322 | E20: ,049 | F20: 54 | G20: 54 | H20: 52 | I20: 54 | J20: 54 | K20: 54 | N20: 1º
B21: Vuelta rápida | F21: 10.963 | G21: 10.981 | H21: 11.038 | I21: 10.988 | J21: 10.835 | K21: 11.018 | N21: 0
B22: Vuelta media | F22: 11.186 | G22: 11.236 | H22: 11.335 | I22: 11.122 | J22: 11.176 | K22: 11.152
B23: Vuelta lenta | D23: (10) | F23: (2) 15,06 | G23: (2) 16,20 | H23: (3) 16,20 | I23: (0) 11,48 | J23: (3) 16,32 | K23: (0) 11,51
A24: 6 | B24: MLANSAC | C24: BMW M1 Gr5 Sideways | D24: 321 | E24: ,082 | F24: 54 | G24: 53 | H24: 54 | I24: 53 | J24: 54 | K24: 53 | N24: 10º
B25: Vuelta rápida | F25: 11.013 | G25: 11.107 | H25: 11.085 | I25: 11.09 | J25: 11.037 | K25: 11.114 | N25: 0
B26: Vuelta media | F26: 11.156 | G26: 11.242 | H26: 11.224 | I26: 11.248 | J26: 11.177 | K26: 11.307
B27: Vuelta lenta | D27: (1) | F27: (0) 11,56 | G27: (0) 11,40 | H27: (0) 11,80 | I27: (0) 11,59 | J27: (0) 11,77 | K27: (1) 13,44
A28: 7 | B28: LRODRIGUEZ | C28: BMW M1 Gr5 Scaleauto | D28: 321 | E28: ,036 | F28: 53 | G28: 54 | H28: 53 | I28: 53 | J28: 55 | K28: 53 | N28: 4º
B29: Vuelta rápida | F29: 11.091 | G29: 11.057 | H29: 11.12 | I29: 11.14 | J29: 10.916 | K29: 11.05 | N29: 0
B30: Vuelta media | F30: 11.261 | G30: 11.182 | H30: 11.296 | I30: 11.368 | J30: 11.111 | K30: 11.174
B31: Vuelta lenta | D31: (4) | F31: (1) 14,12 | G31: (0) 11,71 | H31: (0) 12,08 | I31: (1) 14,15 | J31: (1) 14,20 | K31: (1) 13,34
A32: 8 | B32: JMMOLINS | C32: BMW M1 Gr5 Scaleauto | D32: 318 | E32: ,062 | F32: 53 | G32: 53 | H32: 53 | I32: 53 | J32: 53 | K32: 53 | N32: 7º
B33: Vuelta rápida | F33: 11.245 | G33: 11.09 | H33: 11.233 | I33: 11.175 | J33: 11.051 | K33: 11.211 | N33: 0
B34: Vuelta media | F34: 11.49 | G34: 11.219 | H34: 11.373 | I34: 11.344 | J34: 11.209 | K34: 11.371
B35: Vuelta lenta | D35: (3) | F35: (2) 14,08 | G35: (0) 11,46 | H35: (0) 11,57 | I35: (0) 11,66 | J35: (1) 13,94 | K35: (0) 11,72
A36: 9 | B36: CREPISO | C36: BMW M1 Gr5 Scaleauto | D36: 318 | E36: ,028 | F36: 53 | G36: 53 | H36: 53 | I36: 53 | J36: 53 | K36: 53 | N36: 15º
B37: Vuelta rápida | F37: 11.189 | G37: 11.14 | H37: 11.068 | I37: 11.088 | J37: 11.135 | K37: 11.206 | N37: 0
B38: Vuelta media | F38: 11.401 | G38: 11.277 | H38: 11.321 | I38: 11.25 | J38: 11.35 | K38: 11.442
B39: Vuelta lenta | D39: (7) | F39: (2) 13,57 | G39: (1) 12,92 | H39: (1) 14,16 | I39: (0) 11,41 | J39: (1) 13,87 | K39: (2) 13,45
A40: 10 | B40: MBONAVIDA | C40: BMW M1 Gr5 Scaleauto | D40: 318 | E40: ,008 | F40: 53 | G40: 53 | H40: 54 | I40: 52 | J40: 54 | K40: 52 | N40: 12º
B41: Vuelta rápida | F41: 11.209 | G41: 11.09 | H41: 11.117 | I41: 11.196 | J41: 11.074 | K41: 11.239 | N41: 0
B42: Vuelta media | F42: 11.471 | G42: 11.227 | H42: 11.235 | I42: 11.602 | J42: 11.262 | K42: 11.329
B43: Vuelta lenta | D43: (7) | F43: (3) 13,40 | G43: (0) 11,45 | H43: (0) 11,53 | I43: (3) 15,21 | J43: (1) 13,96 | K43: (0) 11,57
A44: 11 | B44: IGOMEZ | C44: BMW M1 Gr5 Sideways | D44: 317 | E44: ,071 | F44: 54 | G44: 52 | H44: 53 | I44: 53 | J44: 53 | K44: 52 | N44: 14º
B45: Vuelta rápida | F45: 11.142 | G45: 11.152 | H45: 11.22 | I45: 11.146 | J45: 11.2 | K45: 11.444 | N45: 0
B46: Vuelta media | F46: 11.298 | G46: 11.406 | H46: 11.319 | I46: 11.288 | J46: 11.357 | K46: 11.555
B47: Vuelta lenta | D47: (2) | F47: (0) 11,45 | G47: (2) 13,58 | H47: (0) 11,54 | I47: (0) 11,51 | J47: (0) 12,40 | K47: (0) 12,21
A48: 12 | B48: JPEREZ | C48: BMW M1 Gr5 Scaleauto | D48: 314 | E48: ,031 | F48: 53 | G48: 52 | H48: 52 | I48: 52 | J48: 53 | K48: 52 | N48: 21º
B49: Vuelta rápida | F49: 11.196 | G49: 11.1 | H49: 11.22 | I49: 11.291 | J49: 11.038 | K49: 11.126 | N49: 0
B50: Vuelta media | F50: 11.519 | G50: 11.414 | H50: 11.534 | I50: 11.619 | J50: 11.351 | K50: 11.503
B51: Vuelta lenta | D51: (17) | F51: (2) 13,86 | G51: (4) 14,35 | H51: (3) 14,05 | I51: (2) 15,21 | J51: (2) 16,64 | K51: (4) 14,26
A52: 13 | B52: MCASANOVAS | C52: Ford Mustang Turbo Sideways | D52: 314 | E52: ,022 | F52: 53 | G52: 52 | H52: 51 | I52: 52 | J52: 53 | K52: 53 | N52: 17º
B53: Vuelta rápida | F53: 11.163 | G53: 11.306 | H53: 11.36 | I53: 11.3 | J53: 11.112 | K53: 11.282 | N53: 0
B54: Vuelta media | F54: 11.313 | G54: 11.547 | H54: 11.722 | I54: 11.673 | J54: 11.338 | K54: 11.405
B55: Vuelta lenta | D55: (8) | F55: (0) 11,64 | G55: (2) 15,95 | H55: (3) 15,29 | I55: (3) 14,61 | J55: (0) 11,64 | K55: (0) 11,85
A56: 14 | B56: VQUEROL | C56: BMW M1 Gr5 Scaleauto | D56: 313 | E56: ,060 | F56: 52 | G56: 53 | H56: 51 | I56: 52 | J56: 54 | K56: 51 | N56: 9º
B57: Vuelta rápida | F57: 11.135 | G57: 11.178 | H57: 11.19 | I57: 11.169 | J57: 11.009 | K57: 11.288 | N57: 0
B58: Vuelta media | F58: 11.607 | G58: 11.509 | H58: 11.643 | I58: 11.417 | J58: 11.246 | K58: 11.608
B59: Vuelta lenta | D59: (20) | F59: (5) 16,86 | G59: (3) 16,34 | H59: (5) 16,19 | I59: (2) 13,87 | J59: (2) 14,19 | K59: (3) 14,69
A60: 15 | B60: JROBLES | C60: Ferrari 512 BB Sideways | D60: 312 | E60: ,045 | F60: 52 | G60: 52 | H60: 52 | I60: 52 | J60: 52 | K60: 52 | N60: 11º
B61: Vuelta rápida | F61: 11.265 | G61: 11.295 | H61: 11.373 | I61: 11.353 | J61: 11.316 | K61: 11.44 | N61: 0
B62: Vuelta media | F62: 11.485 | G62: 11.532 | H62: 11.703 | I62: 11.532 | J62: 11.483 | K62: 11.585
B63: Vuelta lenta | D63: (7) | F63: (1) 13,47 | G63: (2) 14,24 | H63: (2) 15,18 | I63: (1) 14,52 | J63: (1) 14,13 | K63: (0) 11,86
A64: 16 | B64: GRODRIGUEZ | C64: BMW M1 Gr5 Scaleauto | D64: 311 | E64: ,040 | F64: 48 | G64: 53 | H64: 52 | I64: 53 | J64: 52 | K64: 53 | N64: 13º
B65: Vuelta rápida | F65: 11.492 | G65: 11.267 | H65: 11.318 | I65: 11.299 | J65: 11.197 | K65: 11.223 | N65: 0
B66: Vuelta media | F66: 12.527 | G66: 11.417 | H66: 11.497 | I66: 11.462 | J66: 11.379 | K66: 11.391
B67: Vuelta lenta | D67: (10) | F67: (6) 37,00 | G67: (0) 11,82 | H67: (1) 14,32 | I67: (1) 13,74 | J67: (1) 14,21 | K67: (1) 14,24
A68: 17 | B68: APARERA | C68: BMW M1 Gr5 Sideways | D68: 310 | E68: ,087 | F68: 51 | G68: 52 | H68: 52 | I68: 51 | J68: 52 | K68: 52 | N68: 8º
B69: Vuelta rápida | F69: 11.367 | G69: 11.333 | H69: 11.434 | I69: 11.313 | J69: 11.278 | K69: 11.412 | N69: 0
B70: Vuelta media | F70: 11.589 | G70: 11.528 | H70: 11.595 | I70: 11.758 | J70: 11.512 | K70: 11.752
B71: Vuelta lenta | D71: (12) | F71: (1) 14,82 | G71: (1) 13,88 | H71: (1) 13,97 | I71: (4) 15,88 | J71: (2) 14,12 | K71: (3) 14,63
A72: 18 | B72: ARANERA | C72: Porsche 935/78 MB Sideways | D72: 310 | E72: ,062 | F72: 51 | G72: 52 | H72: 52 | I72: 51 | J72: 52 | K72: 52 | N72: 20º
B73: Vuelta rápida | F73: 11.333 | G73: 11.236 | H73: 11.404 | I73: 11.259 | J73: 11.098 | K73: 11.324 | N73: 0
B74: Vuelta media | F74: 11.784 | G74: 11.588 | H74: 11.686 | I74: 11.687 | J74: 11.474 | K74: 11.555
B75: Vuelta lenta | D75: (18) | F75: (4) 14,93 | G75: (4) 14,84 | H75: (3) 14,45 | I75: (3) 15,65 | J75: (3) 14,92 | K75: (1) 14,03
A76: 19 | B76: PPONTI | C76: Ford Mustang Turbo Sideways | D76: 309 | E76: ,114 | F76: 51 | G76: 52 | H76: 51 | I76: 52 | J76: 51 | K76: 52 | N76: 26º
B77: Vuelta rápida | F77: 11.227 | G77: 11.312 | H77: 11.45 | I77: 11.427 | J77: 11.263 | K77: 11.401 | N77: 0
B78: Vuelta media | F78: 11.708 | G78: 11.59 | H78: 11.702 | I78: 11.727 | J78: 11.582 | K78: 11.621
B79: Vuelta lenta | D79: (11) | F79: (4) 16,35 | G79: (2) 14,86 | H79: (2) 14,43 | I79: (2) 14,35 | J79: (1) 14,25 | K79: (0) 11,93
A80: 20 | B80: DCELAYA | C80: BMW M1 Gr5 Scaleauto | D80: 309 | E80: ,054 | F80: 50 | G80: 52 | H80: 52 | I80: 52 | J80: 52 | K80: 51 | N80: 25º
B81: Vuelta rápida | F81: 11.441 | G81: 11.278 | H81: 11.321 | I81: 11.321 | J81: 11.085 | K81: 11.403 | N81: 0
B82: Vuelta media | F82: 11.938 | G82: 11.482 | H82: 11.764 | I82: 11.514 | J82: 11.41 | K82: 11.811
B83: Vuelta lenta | D83: (15) | F83: (5) 15,46 | G83: (1) 13,50 | H83: (4) 16,25 | I83: (0) 12,00 | J83: (2) 14,54 | K83: (3) 14,47
A84: 21 | B84: VFEBRERO | C84: Toyota Celica Turbo MRRC | D84: 303 | E84: ,025 | F84: 51 | G84: 51 | H84: 51 | I84: 49 | J84: 50 | K84: 51 | N84: 22º
B85: Vuelta rápida | F85: 11.426 | G85: 11.544 | H85: 11.533 | I85: 11.612 | J85: 11.515 | K85: 11.543 | N85: 0
B86: Vuelta media | F86: 11.681 | G86: 11.721 | H86: 11.913 | I86: 12.297 | J86: 11.966 | K86: 11.91
B87: Vuelta lenta | D87: (16) | F87: (2) 14,82 | G87: (1) 13,43 | H87: (2) 15,33 | I87: (5) 17,22 | J87: (3) 15,86 | K87: (3) 14,39
A88: 22 | B88: ABARCELO | C88: Ford Capri Turbo Sideways | D88: 301 | E88: ,046 | F88: 50 | G88: 51 | H88: 50 | I88: 50 | J88: 51 | K88: 49 | N88: 16º
B89: Vuelta rápida | F89: 11.728 | G89: 11.675 | H89: 11.598 | I89: 11.621 | J89: 11.533 | K89: 11.705 | N89: 0
B90: Vuelta media | F90: 12.131 | G90: 11.988 | H90: 11.853 | I90: 12.074 | J90: 11.848 | K90: 12.01
B91: Vuelta lenta | D91: (18) | F91: (3) 15,92 | G91: (4) 14,45 | H91: (2) 14,61 | I91: (4) 15,74 | J91: (2) 15,32 | K91: (3) 14,83
A92: 23 | B92: SSOLA | C92: BMW M1 Gr5 Sideways | D92: 296 | E92: ,007 | F92: 51 | G92: 53 | H92: 36 | I92: 51 | J92: 53 | K92: 52 | N92: 18º
B93: Vuelta rápida | F93: 11.246 | G93: 11.114 | H93: 11.226 | I93: 11.232 | J93: 11.164 | K93: 11.343 | N93: 0
B94: Vuelta media | F94: 11.724 | G94: 11.485 | H94: 17.017 | I94: 11.686 | J94: 11.394 | K94: 11.527
B95: Vuelta lenta | D95: (24) | F95: (6) 15,51 | G95: (4) 16,38 | H95: (5) 139,5 | I95: (5) 16,46 | J95: (3) 14,53 | K95: (1) 13,52
A96: 24 | B96: OVILA | C96: BMW M1 Gr5 Sideways | D96: 286 | E96: ,072 | F96: 45 | G96: 49 | H96: 49 | I96: 48 | J96: 47 | K96: 48 | N96: 23º
B97: Vuelta rápida | F97: 12.06 | G97: 11.49 | H97: 11.614 | I97: 11.681 | J97: 11.413 | K97: 11.713 | N97: 0
B98: Vuelta media | F98: 13.207 | G98: 12.343 | H98: 12.262 | I98: 12.531 | J98: 12.818 | K98: 12.506
B99: Vuelta lenta | D99: (54) | F99: (9) 19,76 | G99: (10)17,18 | H99: (7) 15,65 | I99: (10)15,87 | J99: (11)26,22 | K99: (7) 17,37
A100: 25 | B100: VGONZALEZ | C100: BMW 320 Sideways | D100: 283 | E100: ,097 | F100: 48 | G100: 47 | H100: 46 | I100: 45 | J100: 48 | K100: 49 | N100: 24º
B101: Vuelta rápida | F101: 11.649 | G101: 11.639 | H101: 11.937 | I101: 11.814 | J101: 11.467 | K101: 11.64 | N101: 0
B102: Vuelta media | F102: 12.408 | G102: 12.744 | H102: 13.035 | I102: 13.227 | J102: 12.551 | K102: 12.299
B103: Vuelta lenta | D103: (54) | F103: (9) 17,02 | G103: (8) 20,82 | H103: (9) 18,48 | I103: (12)20,85 | J103: (10)21,14 | K103: (6) 15,73
A104: 26 | B104: ERUIZ | C104: Porsche 935/78 MB Sideways | D104: 243 | E104: ,053 | F104: 47 | G104: 49 | H104: 0 | I104: 49 | J104: 49 | K104: 49 | N104: 19º
B105: Vuelta rápida | F105: 11.638 | G105: 11.669 | H105: 999.9 | I105: 11.557 | J105: 11.573 | K105: 11.65 | N105: 0
B106: Vuelta media | F106: 12.716 | G106: 12.334 | H106: 999.9 | I106: 12.27 | J106: 12.229 | K106: 12.257
B107: Vuelta lenta | D107: (30) | F107: (9) 24,38 | G107: (5) 15,38 | H107: (0) 0,000 | I107: (5) 20,50 | J107: (5) 17,52 | K107: (6) 17,11
A108: Realizado con TicTacSlot v.5.8.8 | J108: www.tictacslot.com
B130: Vuelta media
B131: Vuelta lenta
B162: Vuelta media
B163: Vuelta lenta
B194: Vuelta media
B195: Vuelta lenta
B226: Vuelta media
B227: Vuelta lenta
B258: Vuelta media
B259: Vuelta lenta
B306: Vuelta media
B307: Vuelta lenta
B338: Vuelta media
B339: Vuelta lenta
B370: Vuelta media
B371: Vuelta lenta
B402: Vuelta media
B403: Vuelta lenta
B434: Vuelta media
B435: Vuelta lenta
B466: Vuelta media
B467: Vuelta lenta
B498: Vuelta media
B499: Vuelta lenta

Sheet Verificaciones
B5: Piloto | C5: Modelo | D5: Marca | E5: Peso C | F5: Peso Total | G5: Motor | H5: Imán | I5: Corona | J5: RPM | K5: Consumo | L5: Neumáticos | N5: RPM 2 | O5: Consumo 2 | P5: Imán 2
A6: 1 | B6: Jordi Perez | C6: BMW M1 Gr5 | D6: Scaleauto | E6: 16.65 | F6: 75.88 | G6: Flat 6 | H6: -3.96 | I6: 26 | J6: 8730 | K6: 188 | L6: SC 4758 | M6: =I6/12*J6 -> 18915 | N6: 8550 | O6: 190 | P6: -3.45
A7: 2 | B7: Vicens Febrero | C7: Toyota Celica Turbo | D7: MRRC | E7: 22.45 | F7: 79.5 | G7: Flat 6 | H7: -5.1 | I7: 26 | J7: 8520 | K7: 231 | L7: SC 4758 | M7: =I7/12*J7 -> 18460 | N7: 8700 | O7: 220 | P7: -4.23
A8: 3 | B8: Óscar Vila | C8: BMW M1 Gr5 | D8: Sideways | E8: 16.01 | F8: 72.95 | G8: Flat 6 | H8: -3.15 | I8: 26 | J8: 8880 | K8: 231 | L8: SC 4758 | M8: =I8/12*J8 -> 19240 | N8: 8970 | O8: 192 | P8: -2.66
A9: 4 | B9: Víctor Gonzalez | C9: BMW 320 | D9: Sideways | E9: 18.02 | F9: 77.33 | G9: Flat 6 | H9: -2.95 | I9: 27 | J9: 8520 | K9: 268 | L9: SC 4753 | M9: =I9/12*J9 -> 19170 | N9: 8790 | O9: 236 | P9: -2.89
A10: 5 | B10: David Celaya | C10: BMW M1 Gr5 | D10: Scaleauto | E10: 16.97 | F10: 74.94 | G10: Flat 6 | H10: -3.72 | I10: 28 | J10: 8190 | K10: 220 | L10: SC 4758 | M10: =I10/12*J10 -> 19110 | N10: 8190 | O10: 220 | P10: -3.13
A11: 6 | B11: Pau Ponti | C11: Ford Mustang Turbo | D11: Sideways | E11: 17.7 | F11: 74.94 | G11: Flat 6 | H11: -3.79 | I11: 26 | J11: 9030 | K11: 224 | L11: SC 4758 | M11: =I11/12*J11 -> 19565 | N11: 8670 | O11: 200 | P11: -3.05
A12: 1 | B12: Isra Gómez | C12: BMW M1 Gr5 | D12: Sideways | E12: 16.29 | F12: 72.4 | G12: Flat 6 | H12: -3.31 | I12: 26 | J12: 9300 | K12: 186 | L12: SC 4753 | M12: =I12/12*J12 -> 20150 | N12: 8880 | O12: 184 | P12: -3.42
A13: 2 | B13: Carlos Repiso | C13: BMW M1 Gr5 | D13: Scaleauto | E13: 16.82 | F13: 73.18 | G13: Flat 6 | H13: -2.64 | I13: 26 | J13: 9060 | K13: 256 | L13: SC 4758 | M13: =I13/12*J13 -> 19630 | N13: 8970 | O13: 226 | P13: -2.39
A14: 3 | B14: Alfons Barcelo | C14: Ford Capri Turbo | D14: Sideways | E14: 17.75 | F14: 75.2 | G14: Flat 6 | H14: -3.08 | I14: 26 | J14: 9184 | K14: 184 | L14: SIT 1207 | M14: =I14/12*J14 -> 19899 | N14: 9240 | O14: 208 | P14: -2.14
A15: 4 | B15: Marc Casanovas | C15: Ford Mustang Turbo | D15: Sideways | E15: 17.91 | F15: 71.63 | G15: Flat 6 | H15: -3.02 | I15: 26 | J15: 8940 | K15: 196 | L15: SC 4758 | M15: =I15/12*J15 -> 19370 | N15: 8730 | O15: 212 | P15: -3.02
A16: 5 | B16: Sergi Solá | C16: BMW M1 Gr5 | D16: Sideways | E16: 16.01 | F16: 72.91 | G16: Flat 6 | H16: -3.53 | I16: 27 | J16: 8490 | K16: 244 | L16: SC 4758 | M16: =I16/12*J16 -> 19103 | N16: 8880 | O16: 216 | P16: -3.12
A17: 6 | B17: Eric Ruiz | C17: Porsche 935 '78 | D17: Sideways | E17: 20.89 | F17: 79.78 | G17: Flat 6 | H17: -3.07 | I17: 28 | J17: 8310 | K17: 212 | L17: SC 4758 | M17: =I17/12*J17 -> 19390 | N17: 8310 | O17: 172 | P17: -2.65
A18: 7 | B18: Albert Ranera | C18: Porsche 935 '78 | D18: Sideways | E18: 19.8 | F18: 76.36 | G18: Flat 6 | H18: -3.36 | I18: 26 | J18: 8640 | K18: 252 | L18: SC 4758 | M18: =I18/12*J18 -> 18720 | N18: 9060 | O18: 204 | P18: -2.28
A19: 1 | B19: Josep M. Molins | C19: BMW M1 Gr5 | D19: Scaleauto | E19: 16.63 | F19: 75.76 | G19: Flat 6 | H19: -3.75 | I19: 27 | J19: 8790 | K19: 200 | L19: SC 4758 | M19: =I19/12*J19 -> 19778 | N19: 8370 | O19: 236 | P19: -3.05
A20: 2 | B20: Adam Parera | C20: BMW M1 Gr5 | D20: Sideways | E20: 17.52 | F20: 74.28 | G20: Flat 6 | H20: -3.04 | I20: 26 | J20: 8640 | K20: 236 | L20: SC 4758 | M20: =I20/12*J20 -> 18720 | N20: 9000 | O20: 204 | P20: -2.34
A21: 3 | B21: Víctor Querol | C21: BMW M1 Gr5 | D21: Scaleauto | E21: 16.72 | F21: 73.52 | G21: Flat 6 | H21: -3.13 | I21: 26 | J21: 9390 | K21: 236 | L21: SC 4758 | M21: =I21/12*J21 -> 20345 | N21: 9390 | O21: 224 | P21: -2.45
A22: 4 | B22: Marc Lansac | C22: BMW M1 Gr5 | D22: Sideways | E22: 16.87 | F22: 74.03 | G22: Flat 6 | H22: 3.49 | I22: 27 | J22: 8310 | K22: 210 | L22: SC 4753 | M22: =I22/12*J22 -> 18698 | N22: 8730 | O22: 196 | P22: -3.07
A23: 5 | B23: Jordi Robles | C23: Ferrari 512 BB | D23: Sideways | E23: 18.93 | F23: 76.57 | G23: Flat 6 | H23: -2.7 | I23: 26 | J23: 9030 | K23: 226 | L23: SC 4758 | M23: =I23/12*J23 -> 19565 | N23: 9360 | O23: 188 | P23: -1.85
A24: 6 | B24: Miquel Bonavida | C24: BMW M1 Gr5 | D24: Scaleauto | E24: 16.73 | F24: 74.38 | G24: Flat 6 | H24: -3.18 | I24: 26 | J24: 8850 | K24: 160 | L24: SC 4753 | M24: =I24/12*J24 -> 19175 | N24: 8940 | O24: 192 | P24: -2.61
A25: 7 | B25: Gabri Rodríguez | C25: BMW M1 Gr5 | D25: Scaleauto | E25: 16.52 | F25: 73.32 | G25: Flat 6 | H25: -3.68 | I25: 25 | J25: 8340 | K25: 260 | L25: SIT 1207 | M25: =I25/12*J25 -> 17375 | N25: 8970 | O25: 204 | P25: -3.32
A26: 1 | B26: Eduard Cerda | C26: BMW M1 Gr5 | D26: Scaleauto | E26: 16.57 | F26: 73.7 | G26: Flat 6 | H26: -3.33 | I26: 26 | J26: 9060 | K26: 220 | L26: SC 4758 | M26: =I26/12*J26 -> 19630 | N26: 9090 | O26: 176 | P26: -2.73
A27: 2 | B27: Óscar Capel | C27: BMW M1 Gr5 | D27: Scaleauto | E27: 16.55 | F27: 75.53 | G27: Flat 6 | H27: -3.37 | I27: 26 | J27: 8760 | K27: 196 | L27: SC 4758 | M27: =I27/12*J27 -> 18980 | N27: 8760 | O27: 168 | P27: -2.68
A28: 3 | B28: Francesc Liñan | C28: Ford Capri Turbo | D28: Sideways | E28: 17.67 | F28: 72.6 | G28: Flat 6 | H28: -3.61 | I28: 26 | J28: 9060 | K28: 196 | L28: SC 4758 | M28: =I28/12*J28 -> 19630 | N28: 9120 | O28: 176 | P28: -3.47
A29: 4 | B29: Lorenzo Rodríguez | C29: BMW M1 Gr5 | D29: Scaleauto | E29: 16.7 | F29: 74.38 | G29: Flat 6 | H29: -2.89 | I29: 26 | J29: 8610 | K29: 208 | L29: SC 4758 | M29: =I29/12*J29 -> 18655 | N29: 8790 | O29: 201 | P29: -2.65
A30: 5 | B30: David Izquierdo | C30: BMW M1 Gr5 | D30: Sideways | E30: 16.06 | F30: 71.02 | G30: Flat 6 | H30: -3.37 | I30: 26 | J30: 8940 | K30: 224 | L30: SC 4758 | M30: =I30/12*J30 -> 19370 | N30: 9210 | O30: 164 | P30: -3.18
A31: 6 | B31: Josep M. Sererols | C31: BMW M1 Gr5 | D31: Scaleauto | E31: 16.55 | F31: 74.56 | G31: Flat 6 | H31: -3.16 | I31: 26 | J31: 9240 | K31: 168 | L31: SC 4753 | M31: =I31/12*J31 -> 20020 | N31: 9570 | O31: 208 | P31: -2.65
